[Event "*** Titled Tuesday Blitz"]
[Site "Chess.com"]
[Date "2020.10.20"]
[Round "8"]
[White "ShahMatKanal"]
[Black "nitpicker"]
[Result "1-0"]
[WhiteElo "2440"]
[BlackElo "2288"]
[TimeControl "180+1"]
[EndTime "11:37:08 PDT"]
[Termination "ShahMatKanal won on time"]

1. d4 {[%clk 0:01:48.9]} 1... Nf6 {[%clk 0:02:58.5]} 2. Bf4 {[%clk 0:01:44.5]}
2... b6 {[%clk 0:02:55.8]} 3. e3 {[%clk 0:01:44.2]} 3... Bb7 {[%clk 0:02:54.9]}
4. Nf3 {[%clk 0:01:44.4]} 4... e6 {[%clk 0:02:54.3]} 5. Be2 {[%clk 0:01:44.4]}
5... d6 {[%clk 0:02:54.1]} 6. O-O {[%clk 0:01:44.5]} 6... Nbd7 {[%clk 0:02:54]}
7. h3 {[%clk 0:01:45.1]} 7... g6 {[%clk 0:02:54.2]} 8. c4 {[%clk 0:01:45.1]}
8... Qe7 {[%clk 0:02:53.9]} 9. Bh2 {[%clk 0:01:44.3]} 9... Bg7 {[%clk 0:02:54]}
10. Nc3 {[%clk 0:01:44.6]} 10... O-O {[%clk 0:02:53.6]} 11. Rc1 {[%clk
0:01:42.6]} 11... e5 {[%clk 0:02:50.4]} 12. dxe5 {[%clk 0:01:41.9]} 12... dxe5
{[%clk 0:02:48.2]} 13. Qc2 {[%clk 0:01:40.2]} 13... c6 {[%clk 0:02:19.5]} 14.
Rfd1 {[%clk 0:01:38.5]} 14... Rad8 {[%clk 0:02:10.6]} 15. Qa4 {[%clk 0:01:35.2]}
15... a6 {[%clk 0:02:06.2]} 16. b4 {[%clk 0:01:32.4]} 16... Ne8 {[%clk
0:01:27.4]} 17. Qb3 {[%clk 0:01:18.7]} 17... Nc7 {[%clk 0:01:17.7]} 18. Ne4
{[%clk 0:01:12.4]} 18... Ne6 {[%clk 0:00:47.9]} 19. Nd6 {[%clk 0:01:10.7]} 19...
Ba8 {[%clk 0:00:48.1]} 20. Rd2 {[%clk 0:00:56.1]} 20... h6 {[%clk 0:00:35.5]}
21. Rcd1 {[%clk 0:00:55.8]} 21... Kh7 {[%clk 0:00:33.9]} 22. a4 {[%clk 0:00:55]}
22... f5 {[%clk 0:00:32.2]} 23. a5 {[%clk 0:00:54.9]} 23... bxa5 {[%clk
0:00:27.7]} 24. bxa5 {[%clk 0:00:55]} 24... Ndc5 {[%clk 0:00:26.4]} 25. Qa3
{[%clk 0:00:51.3]} 25... f4 {[%clk 0:00:20]} 26. exf4 {[%clk 0:00:47.8]} 26...
exf4 {[%clk 0:00:18.8]} 27. h4 {[%clk 0:00:34.6]} 27... Rb8 {[%clk 0:00:18]} 28.
h5 {[%clk 0:00:30.7]} 28... g5 {[%clk 0:00:12.7]} 29. Bd3+ {[%clk 0:00:30.4]}
29... Kh8 {[%clk 0:00:12]} 30. Nf5 {[%clk 0:00:28.5]} 30... Qf6 {[%clk
0:00:10.6]} 31. Nxg7 {[%clk 0:00:28.8]} 31... Kxg7 {[%clk 0:00:10.3]} 32. Bg6
{[%clk 0:00:28.8]} 32... Rb3 {[%clk 0:00:09.2]} 33. Rd7+ {[%clk 0:00:27.3]}
33... Nxd7 {[%clk 0:00:08.1]} 34. Rxd7+ {[%clk 0:00:25.9]} 34... Kh8 {[%clk
0:00:07.4]} 35. Qxb3 {[%clk 0:00:17.6]} 35... g4 {[%clk 0:00:07.5]} 36. Ne1
{[%clk 0:00:12.1]} 36... f3 {[%clk 0:00:05.8]} 37. Nd3 {[%clk 0:00:08]} 37...
fxg2 {[%clk 0:00:05.2]} 38. Be5 {[%clk 0:00:07.5]} 38... Nd4 {[%clk 0:00:02]}
39. Bxf6+ {[%clk 0:00:07.1]} 1-0

[Event "*** Titled Tuesday Blitz"]
[Site "Chess.com"]
[Date "2020.10.20"]
[Round "8"]
[White "konradrutkowski"]
[Black "esrosenberg"]
[Result "1-0"]
[WhiteElo "2411"]
[BlackElo "2284"]
[TimeControl "180+1"]
[EndTime "11:37:08 PDT"]
[Termination "konradrutkowski won by checkmate"]

1. e4 {[%clk 0:01:44]} 1... e5 {[%clk 0:02:59.8]} 2. Nf3 {[%clk 0:01:42.9]} 2...
Nc6 {[%clk 0:03:00.1]} 3. Bc4 {[%clk 0:01:42.4]} 3... Nf6 {[%clk 0:02:59.8]} 4.
O-O {[%clk 0:01:40.8]} 4... Be7 {[%clk 0:02:53.3]} 5. d4 {[%clk 0:01:40]} 5...
exd4 {[%clk 0:02:50.1]} 6. e5 {[%clk 0:01:39.7]} 6... Ne4 {[%clk 0:02:50.1]} 7.
Re1 {[%clk 0:01:35.8]} 7... Nc5 {[%clk 0:02:50.1]} 8. c3 {[%clk 0:01:35.1]} 8...
dxc3 {[%clk 0:02:41.4]} 9. Qd5 {[%clk 0:01:33.2]} 9... Ne6 {[%clk 0:02:41.1]}
10. Nxc3 {[%clk 0:01:33.4]} 10... O-O {[%clk 0:02:40.4]} 11. Be3 {[%clk
0:01:31.1]} 11... Nb4 {[%clk 0:02:37.3]} 12. Qd1 {[%clk 0:01:29]} 12... a5
{[%clk 0:02:16.7]} 13. a3 {[%clk 0:01:26.4]} 13... Nc6 {[%clk 0:02:13.9]} 14.
Nd5 {[%clk 0:01:25.2]} 14... Bc5 {[%clk 0:02:11.3]} 15. Qd3 {[%clk 0:01:18.2]}
15... Bxe3 {[%clk 0:02:05.6]} 16. Qxe3 {[%clk 0:01:07.9]} 16... d6 {[%clk
0:02:05.9]} 17. Rad1 {[%clk 0:01:06]} 17... Nxe5 {[%clk 0:01:22.3]} 18. Nxe5
{[%clk 0:01:03.9]} 18... dxe5 {[%clk 0:01:23.2]} 19. Nb6 {[%clk 0:01:02.8]}
19... Qh4 {[%clk 0:00:51.1]} 20. g3 {[%clk 0:00:51.8]} 20... Qh3 {[%clk
0:00:29.6]} 21. Bf1 {[%clk 0:00:48.1]} 21... Qg4 {[%clk 0:00:20.1]} 22. Nxa8
{[%clk 0:00:47.6]} 22... Nf4 {[%clk 0:00:20.2]} 23. Qxe5 {[%clk 0:00:42.6]}
23... Ng6 {[%clk 0:00:18.3]} 24. Qxc7 {[%clk 0:00:36.7]} 24... Bf5 {[%clk
0:00:16.8]} 25. Rd8 {[%clk 0:00:32.8]} 25... h5 {[%clk 0:00:15.3]} 26. Rxf8+
{[%clk 0:00:32.3]} 26... Nxf8 {[%clk 0:00:16.2]} 27. Bg2 {[%clk 0:00:27.5]}
27... h4 {[%clk 0:00:15.8]} 28. Qxb7 {[%clk 0:00:27.6]} 28... h3 {[%clk
0:00:15.9]} 29. Bf3 {[%clk 0:00:27.8]} 29... Qg6 {[%clk 0:00:16.2]} 30. Nc7
{[%clk 0:00:27]} 30... Ne6 {[%clk 0:00:15.5]} 31. Nxe6 {[%clk 0:00:26.6]} 31...
Bxe6 {[%clk 0:00:16.4]} 32. Qa8+ {[%clk 0:00:21.8]} 32... Kh7 {[%clk 0:00:16.4]}
33. Be4 {[%clk 0:00:21.4]} 33... Bf5 {[%clk 0:00:15.9]} 34. Bxf5 {[%clk
0:00:21]} 34... Qxf5 {[%clk 0:00:16.8]} 35. Qe4 {[%clk 0:00:21.1]} 35... Kg6
{[%clk 0:00:16.9]} 36. Qxf5+ {[%clk 0:00:21]} 36... Kxf5 {[%clk 0:00:17.8]} 37.
Rc1 {[%clk 0:00:21.5]} 37... Ke4 {[%clk 0:00:17.8]} 38. Rc4+ {[%clk 0:00:21.9]}
38... Kf3 {[%clk 0:00:17.8]} 39. Kf1 {[%clk 0:00:19.4]} 39... g5 {[%clk
0:00:17.5]} 40. Rc5 {[%clk 0:00:18.3]} 40... Kg4 {[%clk 0:00:16.3]} 41. Ke2
{[%clk 0:00:17.2]} 41... f5 {[%clk 0:00:17.2]} 42. f3+ {[%clk 0:00:17.1]} 42...
Kh5 {[%clk 0:00:17.7]} 43. Rxf5 {[%clk 0:00:16.7]} 43... Kg6 {[%clk 0:00:18.6]}
44. Rxa5 {[%clk 0:00:15.6]} 44... g4 {[%clk 0:00:19.5]} 45. fxg4 {[%clk
0:00:15.2]} 45... Kf6 {[%clk 0:00:20.3]} 46. Kf3 {[%clk 0:00:15.8]} 46... Ke6
{[%clk 0:00:21.2]} 47. Rf5 {[%clk 0:00:16]} 47... Kd6 {[%clk 0:00:22.1]} 48. Kf4
{[%clk 0:00:16.7]} 48... Kc6 {[%clk 0:00:23]} 49. g5 {[%clk 0:00:17.6]} 49...
Kb6 {[%clk 0:00:23.9]} 50. g6 {[%clk 0:00:18.4]} 50... Ka6 {[%clk 0:00:24.8]}
51. g7 {[%clk 0:00:19.3]} 51... Kb6 {[%clk 0:00:25.7]} 52. g8=Q {[%clk 0:00:20]}
52... Ka6 {[%clk 0:00:26.6]} 53. Qg6+ {[%clk 0:00:20.1]} 53... Kb7 {[%clk
0:00:26.8]} 54. Rf7+ {[%clk 0:00:21]} 54... Kc8 {[%clk 0:00:27.3]} 55. Qg8#
{[%clk 0:00:21.7]} 1-0

[Event "*** Titled Tuesday Blitz"]
[Site "Chess.com"]
[Date "2020.10.20"]
[Round "8"]
[White "Cocaino74"]
[Black "HrvojeZagreb"]
[Result "1-0"]
[WhiteElo "2364"]
[BlackElo "2197"]
[TimeControl "180+1"]
[EndTime "11:37:10 PDT"]
[Termination "Cocaino74 won on time"]

1. a4 {[%clk 0:03:00.9]} 1... f5 {[%clk 0:02:52.7]} 2. Ra3 {[%clk 0:03:00.3]}
2... Nf6 {[%clk 0:02:52.5]} 3. Rg3 {[%clk 0:02:56.5]} 3... e5 {[%clk 0:02:47.1]}
4. e3 {[%clk 0:02:50.1]} 4... d5 {[%clk 0:02:32.3]} 5. Nf3 {[%clk 0:02:43.9]}
5... e4 {[%clk 0:02:18.5]} 6. Ne5 {[%clk 0:02:37.1]} 6... Nbd7 {[%clk
0:02:08.6]} 7. d4 {[%clk 0:02:34]} 7... c6 {[%clk 0:01:47]} 8. Be2 {[%clk
0:02:15.5]} 8... g6 {[%clk 0:01:38.2]} 9. h4 {[%clk 0:02:14.3]} 9... Nxe5 {[%clk
0:01:24.8]} 10. dxe5 {[%clk 0:02:13.4]} 10... Nd7 {[%clk 0:01:25.1]} 11. h5
{[%clk 0:02:07.9]} 11... g5 {[%clk 0:01:19.1]} 12. h6 {[%clk 0:02:04.9]} 12...
Nxe5 {[%clk 0:01:14.2]} 13. Bh5+ {[%clk 0:02:02.8]} 13... Ng6 {[%clk 0:01:00.8]}
14. Qd4 {[%clk 0:01:40.8]} 14... Rg8 {[%clk 0:00:49.7]} 15. Nc3 {[%clk
0:01:20.8]} 15... Bd6 {[%clk 0:00:42.1]} 16. Nxd5 {[%clk 0:01:16.7]} 16... cxd5
{[%clk 0:00:37.2]} 17. Bxg6+ {[%clk 0:01:10.8]} 17... Rxg6 {[%clk 0:00:35.3]}
18. Qh8+ {[%clk 0:01:10.9]} 18... Bf8 {[%clk 0:00:28.2]} 19. Qxh7 {[%clk
0:01:10.9]} 19... Qf6 {[%clk 0:00:25.5]} 20. Qc7 {[%clk 0:01:09.8]} 20... Rxh6
{[%clk 0:00:21.6]} 21. Rxh6 {[%clk 0:01:09.4]} 21... Qxh6 {[%clk 0:00:22.3]} 22.
Bd2 {[%clk 0:01:06.8]} 22... Bd6 {[%clk 0:00:19.2]} 23. Qc3 {[%clk 0:00:57.8]}
23... Bxg3 {[%clk 0:00:18.1]} 24. fxg3 {[%clk 0:00:58.7]} 24... Bd7 {[%clk
0:00:17]} 25. Qe5+ {[%clk 0:00:56.6]} 25... Qe6 {[%clk 0:00:16.3]} 26. Qh8+
{[%clk 0:00:56.9]} 26... Ke7 {[%clk 0:00:13.9]} 27. Bb4+ {[%clk 0:00:56.6]}
27... Kf7 {[%clk 0:00:12]} 28. Qh7+ {[%clk 0:00:56.9]} 28... Ke8 {[%clk
0:00:11.1]} 29. Qh8+ {[%clk 0:00:57.3]} 29... Kf7 {[%clk 0:00:11.3]} 30. Qxa8
{[%clk 0:00:57.2]} 30... Qc6 {[%clk 0:00:07.6]} 31. Qf8+ {[%clk 0:00:52.4]}
31... Kg6 {[%clk 0:00:07.4]} 32. Qg8+ {[%clk 0:00:52]} 32... Kf6 {[%clk
0:00:07.7]} 33. Bc3+ {[%clk 0:00:51.4]} 33... d4 {[%clk 0:00:04.8]} 34. Bxd4+
{[%clk 0:00:51.3]} 34... Ke7 {[%clk 0:00:05.2]} 35. Qxg5+ {[%clk 0:00:49.1]}
35... Kd6 {[%clk 0:00:04.1]} 36. Qf4+ {[%clk 0:00:47]} 36... Ke7 {[%clk
0:00:04.5]} 37. Qh4+ {[%clk 0:00:45.2]} 37... Kd6 {[%clk 0:00:03.7]} 38. Qf6+
{[%clk 0:00:27]} 38... Kc7 {[%clk 0:00:03.6]} 39. Be5+ {[%clk 0:00:27.7]} 39...
Kb6 {[%clk 0:00:03.5]} 40. Qd8+ {[%clk 0:00:28.1]} 40... Ka6 {[%clk 0:00:03.5]}
41. b4 {[%clk 0:00:26.9]} 41... Qxa4 {[%clk 0:00:02.1]} 42. c4 {[%clk 0:00:21]}
42... Qa1+ {[%clk 0:00:01.1]} 43. Bxa1 {[%clk 0:00:20.3]} 1-0

[Event "*** Titled Tuesday Blitz"]
[Site "Chess.com"]
[Date "2020.10.20"]
[Round "8"]
[White "ChainsOfFantasia"]
[Black "GoltsevDmitry2000"]
[Result "0-1"]
[WhiteElo "2500"]
[BlackElo "2687"]
[TimeControl "180+1"]
[EndTime "11:37:11 PDT"]
[Termination "GoltsevDmitry2000 won by resignation"]

1. d4 {[%clk 0:03:00.9]} 1... b6 {[%clk 0:02:58.7]} 2. e4 {[%clk 0:02:59.9]}
2... Bb7 {[%clk 0:02:57.2]} 3. Bd3 {[%clk 0:03:00]} 3... d6 {[%clk 0:02:57.5]}
4. Qe2 {[%clk 0:02:58.9]} 4... Nd7 {[%clk 0:02:57.6]} 5. Nf3 {[%clk 0:02:58.6]}
5... g6 {[%clk 0:02:57.8]} 6. O-O {[%clk 0:02:58.1]} 6... Bg7 {[%clk 0:02:57.8]}
7. a4 {[%clk 0:02:50.6]} 7... a5 {[%clk 0:02:57.3]} 8. Nbd2 {[%clk 0:02:36.1]}
8... e5 {[%clk 0:02:56.7]} 9. dxe5 {[%clk 0:02:32]} 9... Nxe5 {[%clk 0:02:54.8]}
10. Nxe5 {[%clk 0:02:27.7]} 10... Bxe5 {[%clk 0:02:54]} 11. f4 {[%clk
0:02:21.3]} 11... Bg7 {[%clk 0:02:53.2]} 12. Bb5+ {[%clk 0:02:15.5]} 12... c6
{[%clk 0:02:50.1]} 13. Bd3 {[%clk 0:02:15.7]} 13... Ne7 {[%clk 0:02:41.4]} 14.
f5 {[%clk 0:02:15.8]} 14... Bd4+ {[%clk 0:02:37.3]} 15. Kh1 {[%clk 0:02:15.4]}
15... O-O {[%clk 0:02:37.1]} 16. Nf3 {[%clk 0:01:58.1]} 16... Bg7 {[%clk
0:02:36.6]} 17. Bg5 {[%clk 0:01:50.5]} 17... f6 {[%clk 0:02:35.9]} 18. Bf4
{[%clk 0:01:46.4]} 18... g5 {[%clk 0:02:35]} 19. Bg3 {[%clk 0:01:27.4]} 19... h6
{[%clk 0:02:28.4]} 20. Nd4 {[%clk 0:01:24.3]} 20... Bc8 {[%clk 0:02:27]} 21.
Bc4+ {[%clk 0:01:22.5]} 21... Kh7 {[%clk 0:02:26.1]} 22. Rad1 {[%clk 0:01:22.2]}
22... d5 {[%clk 0:02:13]} 23. Ne6 {[%clk 0:01:11.7]} 23... Bxe6 {[%clk
0:02:04.4]} 24. fxe6 {[%clk 0:01:12.6]} 24... f5 {[%clk 0:01:56]} 25. exf5
{[%clk 0:01:04.9]} 25... Bxb2 {[%clk 0:01:39.9]} 26. Bd3 {[%clk 0:00:53]} 26...
Bf6 {[%clk 0:01:38.6]} 27. Be5 {[%clk 0:00:52.6]} 27... Kg7 {[%clk 0:01:17.7]}
28. Bxf6+ {[%clk 0:00:51]} 28... Rxf6 {[%clk 0:01:18.6]} 29. h4 {[%clk
0:00:47.8]} 29... Qd6 {[%clk 0:00:59]} 30. Qg4 {[%clk 0:00:41.6]} 30... Rh8
{[%clk 0:00:58.3]} 31. Kg1 {[%clk 0:00:30.6]} 31... Kf8 {[%clk 0:00:46.9]} 32.
Rb1 {[%clk 0:00:26.7]} 32... Rg8 {[%clk 0:00:40]} 33. Qd4 {[%clk 0:00:19.7]}
33... Kg7 {[%clk 0:00:39.9]} 34. Rxb6 {[%clk 0:00:15.9]} 34... gxh4 {[%clk
0:00:39.5]} 35. Rb7 {[%clk 0:00:15.1]} 35... c5 {[%clk 0:00:33.8]} 36. Qxh4
{[%clk 0:00:12.7]} 36... c4 {[%clk 0:00:33]} 37. Be2 {[%clk 0:00:11.4]} 37...
Rgf8 {[%clk 0:00:32.9]} 38. Rf3 {[%clk 0:00:10.7]} 38... Kh8 {[%clk 0:00:32.5]}
39. Rg3 {[%clk 0:00:08.1]} 39... Nxf5 {[%clk 0:00:19.3]} 40. Qg4 {[%clk
0:00:06.3]} 40... Qxg3 {[%clk 0:00:17.9]} 0-1

[Event "*** Titled Tuesday Blitz"]
[Site "Chess.com"]
[Date "2020.10.20"]
[Round "8"]
[White "Susal_De_Silva"]
[Black "Kurai"]
[Result "1-0"]
[WhiteElo "2446"]
[BlackElo "2575"]
[TimeControl "180+1"]
[EndTime "11:37:12 PDT"]
[Termination "Susal_De_Silva won by resignation"]

1. e4 {[%clk 0:03:00.9]} 1... e5 {[%clk 0:02:59.9]} 2. Nf3 {[%clk 0:03:00.7]}
2... Nc6 {[%clk 0:03:00.4]} 3. Bb5 {[%clk 0:03:00]} 3... Nf6 {[%clk 0:02:59.1]}
4. O-O {[%clk 0:02:57.9]} 4... Nxe4 {[%clk 0:02:59.1]} 5. d4 {[%clk 0:02:53.6]}
5... Nd6 {[%clk 0:02:59]} 6. dxe5 {[%clk 0:02:50.8]} 6... Nxb5 {[%clk
0:02:59.2]} 7. a4 {[%clk 0:02:51]} 7... d6 {[%clk 0:02:59.7]} 8. axb5 {[%clk
0:02:48.5]} 8... Nxe5 {[%clk 0:02:59.9]} 9. Re1 {[%clk 0:02:45.4]} 9... Be7
{[%clk 0:02:57.1]} 10. Nxe5 {[%clk 0:02:39.4]} 10... dxe5 {[%clk 0:02:57.1]} 11.
Qxd8+ {[%clk 0:02:40.3]} 11... Bxd8 {[%clk 0:02:56.1]} 12. Rxe5+ {[%clk
0:02:40.2]} 12... Be6 {[%clk 0:02:56.4]} 13. Nc3 {[%clk 0:02:36.5]} 13... O-O
{[%clk 0:02:56.1]} 14. Re1 {[%clk 0:02:35.5]} 14... Bf5 {[%clk 0:02:15.3]} 15.
Be3 {[%clk 0:02:13.5]} 15... Bxc2 {[%clk 0:02:13.6]} 16. Rxa7 {[%clk 0:02:10.1]}
16... Rxa7 {[%clk 0:02:12.2]} 17. Bxa7 {[%clk 0:02:11]} 17... Bf6 {[%clk
0:02:01]} 18. Nd5 {[%clk 0:01:44.4]} 18... Bxb2 {[%clk 0:01:22.5]} 19. Re2
{[%clk 0:01:03.6]} 19... Ra8 {[%clk 0:00:39.3]} 20. Nxc7 {[%clk 0:00:56.4]}
20... Rd8 {[%clk 0:00:38.7]} 21. f3 {[%clk 0:00:40.6]} 21... Bd4+ {[%clk
0:00:02.9]} 22. Bxd4 {[%clk 0:00:39.6]} 22... Bd3 {[%clk 0:00:03.6]} 23. Re3
{[%clk 0:00:30.6]} 23... Bf5 {[%clk 0:00:03.8]} 24. Re8+ {[%clk 0:00:27.3]}
24... Rxe8 {[%clk 0:00:03.6]} 25. Nxe8 {[%clk 0:00:28.2]} 25... Bd3 {[%clk
0:00:04]} 26. b6 {[%clk 0:00:27.1]} 26... Bb5 {[%clk 0:00:04.1]} 27. Nxg7 {[%clk
0:00:25]} 27... Kf8 {[%clk 0:00:03.1]} 28. Nf5 {[%clk 0:00:25.1]} 28... Ke8
{[%clk 0:00:03.5]} 29. Kf2 {[%clk 0:00:24]} 29... Kd7 {[%clk 0:00:04]} 30. Ke3
{[%clk 0:00:23.9]} 30... Ke6 {[%clk 0:00:04.4]} 31. g4 {[%clk 0:00:21.1]} 31...
Bf1 {[%clk 0:00:04.9]} 32. Kf4 {[%clk 0:00:20.7]} 32... Ba6 {[%clk 0:00:05.8]}
33. Bg1 {[%clk 0:00:20.9]} 33... Kd5 {[%clk 0:00:05.6]} 34. Kg5 {[%clk 0:00:21]}
34... Be2 {[%clk 0:00:05.9]} 35. f4 {[%clk 0:00:20.6]} 35... Ke4 {[%clk
0:00:06.3]} 36. Ng3+ {[%clk 0:00:20.5]} 36... Kf3 {[%clk 0:00:06.8]} 37. Nxe2
{[%clk 0:00:21.4]} 37... Kxe2 {[%clk 0:00:07.5]} 38. Kf6 {[%clk 0:00:21.8]}
38... Kf3 {[%clk 0:00:08]} 39. Kxf7 {[%clk 0:00:20.9]} 39... Kxf4 {[%clk
0:00:08.4]} 40. h3 {[%clk 0:00:21.5]} 40... Kg3 {[%clk 0:00:08.4]} 41. Kg7
{[%clk 0:00:19.8]} 41... Kxh3 {[%clk 0:00:08.8]} 42. g5 {[%clk 0:00:19.6]} 42...
Kg4 {[%clk 0:00:09.3]} 43. Be3 {[%clk 0:00:19.5]} 43... h5 {[%clk 0:00:07]} 44.
gxh6 {[%clk 0:00:19.4]} 1-0

[Event "*** Titled Tuesday Blitz"]
[Site "Chess.com"]
[Date "2020.10.20"]
[Round "8"]
[White "maxip32"]
[Black "Buffy7"]
[Result "0-1"]
[WhiteElo "2429"]
[BlackElo "2645"]
[TimeControl "180+1"]
[EndTime "11:37:13 PDT"]
[Termination "Buffy7 won on time"]

1. e4 {[%clk 0:03:00.9]} 1... e5 {[%clk 0:02:58.7]} 2. Nf3 {[%clk 0:03:00.7]}
2... Nc6 {[%clk 0:02:59.3]} 3. Bc4 {[%clk 0:03:00.6]} 3... Bc5 {[%clk
0:02:58.1]} 4. O-O {[%clk 0:03:00.2]} 4... Nf6 {[%clk 0:02:58]} 5. d3 {[%clk
0:03:00]} 5... d6 {[%clk 0:02:56.7]} 6. c3 {[%clk 0:03:00]} 6... a6 {[%clk
0:02:56.6]} 7. a4 {[%clk 0:02:59.8]} 7... Ba7 {[%clk 0:02:54.4]} 8. Na3 {[%clk
0:03:00.1]} 8... h6 {[%clk 0:02:52.7]} 9. Nc2 {[%clk 0:02:59.6]} 9... O-O {[%clk
0:02:52.5]} 10. Be3 {[%clk 0:02:59.4]} 10... Re8 {[%clk 0:02:48.2]} 11. Bxa7
{[%clk 0:02:58]} 11... Rxa7 {[%clk 0:02:42.1]} 12. Ne3 {[%clk 0:02:41.8]} 12...
Be6 {[%clk 0:02:36.9]} 13. Re1 {[%clk 0:02:39.7]} 13... Ra8 {[%clk 0:02:31.3]}
14. Bxe6 {[%clk 0:02:34.1]} 14... Rxe6 {[%clk 0:02:32.2]} 15. Nf5 {[%clk
0:02:17.9]} 15... Qd7 {[%clk 0:02:09.9]} 16. Qc2 {[%clk 0:02:13.1]} 16... Rae8
{[%clk 0:02:06.7]} 17. b4 {[%clk 0:02:08.3]} 17... b5 {[%clk 0:02:02.4]} 18.
axb5 {[%clk 0:02:06.2]} 18... axb5 {[%clk 0:02:03.3]} 19. Ra6 {[%clk 0:02:06.1]}
19... d5 {[%clk 0:02:00.5]} 20. Rea1 {[%clk 0:02:05.5]} 20... Kh7 {[%clk
0:01:40.4]} 21. h3 {[%clk 0:01:52]} 21... g6 {[%clk 0:01:35.4]} 22. Ng3 {[%clk
0:01:47.3]} 22... Kg7 {[%clk 0:01:24.7]} 23. Nd2 {[%clk 0:01:46.9]} 23... Qc8
{[%clk 0:00:49.8]} 24. R6a3 {[%clk 0:01:24.8]} 24... Qd8 {[%clk 0:00:22.8]} 25.
Nb3 {[%clk 0:01:19.9]} 25... dxe4 {[%clk 0:00:22.9]} 26. dxe4 {[%clk 0:01:20.7]}
26... Rd6 {[%clk 0:00:22.9]} 27. Nf1 {[%clk 0:01:14.9]} 27... Nd7 {[%clk
0:00:20.6]} 28. Ne3 {[%clk 0:01:01.1]} 28... Nb6 {[%clk 0:00:19.8]} 29. Nc5
{[%clk 0:00:48.2]} 29... Rd2 {[%clk 0:00:18.7]} 30. Qc1 {[%clk 0:00:48.1]} 30...
Nc4 {[%clk 0:00:18.3]} 31. Nxc4 {[%clk 0:00:46.8]} 31... bxc4 {[%clk 0:00:19.2]}
32. R3a2 {[%clk 0:00:38.1]} 32... Rxa2 {[%clk 0:00:17.2]} 33. Rxa2 {[%clk
0:00:39]} 33... Qh4 {[%clk 0:00:15.6]} 34. Qf1 {[%clk 0:00:37.7]} 34... Rd8
{[%clk 0:00:14.8]} 35. b5 {[%clk 0:00:18.3]} 35... Ne7 {[%clk 0:00:14.1]} 36.
Ra7 {[%clk 0:00:17.3]} 36... Qh5 {[%clk 0:00:12.9]} 37. g4 {[%clk 0:00:17.2]}
37... Qg5 {[%clk 0:00:12.3]} 38. Rxc7 {[%clk 0:00:17.4]} 38... Kg8 {[%clk
0:00:12.8]} 39. b6 {[%clk 0:00:16.5]} 39... h5 {[%clk 0:00:10.3]} 40. Qg2 {[%clk
0:00:02.8]} 40... Rd1+ {[%clk 0:00:09.8]} 41. Kh2 {[%clk 0:00:03.4]} 41... h4
{[%clk 0:00:10.3]} 0-1

[Event "*** Titled Tuesday Blitz"]
[Site "Chess.com"]
[Date "2020.10.20"]
[Round "8"]
[White "Rodalquilar"]
[Black "Fusikk"]
[Result "1-0"]
[WhiteElo "2715"]
[BlackElo "2538"]
[TimeControl "180+1"]
[EndTime "11:37:14 PDT"]
[Termination "Rodalquilar won on time"]

1. d4 {[%clk 0:03:00.9]} 1... Nf6 {[%clk 0:02:55.5]} 2. Bf4 {[%clk 0:03:01]}
2... d5 {[%clk 0:02:54.3]} 3. e3 {[%clk 0:03:01.5]} 3... e6 {[%clk 0:02:54.5]}
4. Nf3 {[%clk 0:03:01.5]} 4... Bd6 {[%clk 0:02:55.4]} 5. Bg3 {[%clk 0:03:02]}
5... c5 {[%clk 0:02:55.3]} 6. Bb5+ {[%clk 0:03:00.5]} 6... Nc6 {[%clk
0:02:52.1]} 7. Nbd2 {[%clk 0:03:01]} 7... O-O {[%clk 0:02:49.6]} 8. c3 {[%clk
0:03:01.4]} 8... Bxg3 {[%clk 0:02:44.7]} 9. hxg3 {[%clk 0:03:01.3]} 9... Qd6
{[%clk 0:02:45.6]} 10. Bxc6 {[%clk 0:03:01.2]} 10... Qxc6 {[%clk 0:02:42.1]} 11.
Ne5 {[%clk 0:03:00.3]} 11... Qc7 {[%clk 0:02:42.1]} 12. g4 {[%clk 0:02:50.2]}
12... Nd7 {[%clk 0:02:30.7]} 13. Qc2 {[%clk 0:02:04.3]} 13... g6 {[%clk
0:02:26.5]} 14. Nxd7 {[%clk 0:02:03.8]} 14... Bxd7 {[%clk 0:02:24.8]} 15. g5
{[%clk 0:02:04.4]} 15... e5 {[%clk 0:02:14.6]} 16. dxe5 {[%clk 0:01:47]} 16...
Qxe5 {[%clk 0:02:07.7]} 17. Nf3 {[%clk 0:01:47.2]} 17... Qe7 {[%clk 0:01:41.5]}
18. O-O-O {[%clk 0:01:25.5]} 18... Bf5 {[%clk 0:01:39.1]} 19. Qb3 {[%clk
0:01:25.9]} 19... Be4 {[%clk 0:01:35.7]} 20. Rxd5 {[%clk 0:01:06.9]} 20... Bxd5
{[%clk 0:01:33.2]} 21. Qxd5 {[%clk 0:01:07.8]} 21... Rfd8 {[%clk 0:00:51.3]} 22.
Qc4 {[%clk 0:01:07.9]} 22... Rd7 {[%clk 0:00:37]} 23. Qh4 {[%clk 0:00:40.3]}
23... f6 {[%clk 0:00:36.5]} 24. gxf6 {[%clk 0:00:39.2]} 24... Qe6 {[%clk
0:00:30.4]} 25. Qf4 {[%clk 0:00:33.2]} 25... Qxa2 {[%clk 0:00:18.3]} 26. Ne5
{[%clk 0:00:33.2]} 26... Qa1+ {[%clk 0:00:17.3]} 27. Kc2 {[%clk 0:00:33.7]}
27... Qxh1 {[%clk 0:00:16.5]} 28. f7+ {[%clk 0:00:34]} 28... Rxf7 {[%clk
0:00:05.1]} 29. Qxf7+ {[%clk 0:00:34.5]} 29... Kh8 {[%clk 0:00:05.5]} 30. Qxb7
{[%clk 0:00:28.7]} 30... Re8 {[%clk 0:00:03.7]} 31. Qc6 {[%clk 0:00:17.9]} 31...
Rxe5 {[%clk 0:00:01.6]} 32. Qf6+ {[%clk 0:00:18]} 32... Kg8 {[%clk 0:00:02.5]}
33. Qxe5 {[%clk 0:00:18.3]} 33... Qxg2 {[%clk 0:00:03.4]} 34. Qb8+ {[%clk
0:00:18]} 34... Kg7 {[%clk 0:00:02.8]} 35. Qxa7+ {[%clk 0:00:18.4]} 35... Kh6
{[%clk 0:00:03.3]} 36. Qf7 {[%clk 0:00:18.5]} 36... Qf1 {[%clk 0:00:02.7]} 37.
Qf8+ {[%clk 0:00:18.2]} 37... Kh5 {[%clk 0:00:02.5]} 38. Qf3+ {[%clk 0:00:18.5]}
38... Kh6 {[%clk 0:00:02.5]} 39. e4 {[%clk 0:00:18.8]} 39... c4 {[%clk
0:00:02.2]} 40. e5 {[%clk 0:00:16.9]} 40... Qe1 {[%clk 0:00:02.3]} 41. Qf4+
{[%clk 0:00:15.2]} 41... Kg7 {[%clk 0:00:02.1]} 42. Qxc4 {[%clk 0:00:12.9]} 1-0